bitfinex/quotes_ETHUSD_20241130
["timestamp","ask_amount","ask_price","bid_price","bid_amount"]
[1732937574453,3.00542296,3638.4,3637.7,2.74897]
[1732937574708,2.7485,3638.4,3637.5,0.7987]
[1732937574997,2.7485,3638.4,3637.9,2.74883]
[1732937575300,0.25698444,3638.3,3637.9,2.74883]
[1732937575480,2.74866,3638.2,3637.5,3.54779]
[1732937575801,2.74849,3638.4,3637.7,2.74893]
[1732937576092,0.25698989,3638.3,3637.8,2.7489]
[1732937576446,3.4106401,3638.4,3637.8,2.7489]
[1732937576447,0.25698989,3638.2,3637.8,2.7489]
[1732937576762,2.74806,3639.0,3636.7,3.3038464]
[1732937576763,0.25701947,3638.3,3637.7,0.7987]
[1732937576919,0.25697566,3639.0,3638.9,2.74808]
[1732937577124,0.7726,3639.4,3639.0,2.74796]
[1732937577708,3.52001,3639.8,3639.2,2.74785]
[1732937577908,3.00445071,3639.7,3639.2,2.74785]
[1732937578208,0.25698071,3639.6,3639.2,2.74785]
[1732937578514,2.74747,3639.7,3639.2,2.74785]
[1732937578716,0.256975,3639.6,3639.2,2.74785]
[1732937578883,0.7726,3639.8,3639.3,2.74778]
[1732937579207,0.25696474,3639.7,3639.3,2.74778]
[1732937579416,0.7726,3640.1,3639.3,2.74778]
[1732937579573,0.7726,3640.1,3639.7,2.74745]
[1732937579764,0.25691773,3640.0,3639.7,2.74745]
[1732937579969,0.25691773,3639.9,3639.5,2.74757]
[1732937580294,0.7726,3640.1,3639.7,2.74747]
[1732937580550,0.25690621,3640.0,3639.9,2.74726]
[1732937580716,0.2569018,3640.3,3640.0,2.74721]
[1732937580921,1.18366837,3640.7,3640.1,2.74717]
[1732937581247,0.64992208,3640.6,3640.0,2.74724]
[1732937581419,0.39302784,3640.6,3640.0,2.74724]
[1732937581620,0.64969561,3640.6,3640.0,2.74724]
[1732937582447,0.39302784,3640.6,3640.0,2.74724]
[1732937582829,3.13988784,3640.6,3639.8,2.74734]
[1732937583167,2.74688,3640.5,3639.8,2.74734]
[1732937583332,0.39302784,3640.6,3640.0,2.74724]
[1732937583844,0.39357307,3640.5,3639.6,2.74754]
[1732937584042,0.55,3640.5,3639.6,2.74754]
[1732937584272,0.55,3640.5,3640.0,2.74719]
[1732937584474,3.51934,3640.7,3640.1,2.74716]
[1732937585775,3.51934,3640.7,3640.0,2.74718]
[1732937585967,3.51934,3640.7,3640.0,2.74719]
[1732937586169,0.7726,3640.7,3640.0,0.549457]
[1732937586371,0.5733729,3640.6,3639.4,0.7987]
[1732937586586,0.55,3640.6,3639.4,0.7987]
[1732937586789,0.7532,3641.0,3640.3,2.74698]
[1732937586979,0.55,3640.9,3640.5,2.7468]
[1732937587176,0.7532,3641.0,3640.3,0.02746762]
[1732937587484,0.875,3641.4,3640.8,0.8035]
[1732937587692,3.62121,3641.4,3640.8,2.74663]
[1732937588264,0.875,3641.4,3640.8,3.10438937]
[1732937588462,0.875,3641.4,3640.5,2.74685]
[1732937588463,0.7532,3641.3,3640.5,2.74685]
[1732937588781,0.875,3641.4,3640.9,2.74654]
[1732937589105,0.875,3641.4,3640.8,2.74664]
[1732937589466,3.6212,3641.4,3640.8,2.74664]
[1732937589661,0.875,3641.4,3640.8,2.7466]
[1732937589863,0.875,3641.4,3640.9,0.549339]
[1732937590291,0.875,3641.4,3640.5,0.8035]
[1732937590512,0.875,3641.4,3640.8,2.74664]
[1732937590801,0.875,3641.4,3641.0,2.74649]
[1732937591006,0.875,3641.4,3640.7,2.74667]
[1732937591158,0.875,3641.4,3640.5,3.55035]
[1732937591159,0.875,3641.4,3640.5,0.8035]
[1732937591501,3.6212,3641.4,3640.7,2.74666]
[1732937591859,3.6212,3641.4,3640.7,3.376363]
[1732937591860,2.74634,3641.3,3640.7,3.376363]
[1732937592309,0.875,3641.4,3640.7,0.629703]
[1732937592507,3.62122,3641.4,3640.8,2.74664]
[1732937593008,2.74657,3640.9,3640.1,2.74712]
[1732937593218,0.7532,3641.1,3639.6,0.8035]
[1732937593219,0.55,3640.7,3639.6,0.8035]
[1732937593422,0.7532,3640.8,3639.8,2.74733]
[1732937593712,0.7532,3640.8,3638.9,4.8764827]
[1732937593713,0.55,3641.1,3640.3,3.5505]
[1732937593914,0.7532,3641.2,3640.3,0.8035]
[1732937594084,0.7532,3641.2,3640.7,2.74671]
[1732937594287,3.49957,3641.2,3640.6,2.74679]
[1732937594486,0.7532,3641.2,3640.3,0.8035]
[1732937594822,2.74657,3640.9,3640.3,3.55047]
[1732937595130,2.7465,3641.0,3640.4,3.376692]
[1732937595888,2.74657,3640.9,3640.4,0.629762]
[1732937596216,0.55,3641.1,3640.4,0.629762]
[1732937596428,2.74649,3641.0,3640.4,0.629762]
[1732937596978,2.7468,3640.6,3639.9,2.7473]
[1732937597178,2.74695,3640.4,3639.8,0.8035]
[1732937597385,2.74695,3640.4,3639.8,3.55089]
[1732937597613,2.74704,3640.3,3639.9,0.629834]
[1732937597779,2.74704,3640.3,3639.5,3.5511]
[1732937597780,2.74716,3640.2,3639.5,3.5511]
[1732937598119,0.7532,3640.5,3639.5,0.8035]
[1732937598423,0.7532,3640.5,3640.0,2.74718]
[1732937598580,0.55,3640.8,3639.7,2.74747]
[1732937598783,0.55,3640.8,3639.6,2.7749601]
[1732937598784,3.29666,3640.8,3640.1,2.74712]
[1732937598992,0.55,3640.8,3640.1,2.74712]
[1732937599221,0.55,3640.8,3640.2,2.74708]
[1732937599424,3.29663,3640.9,3640.3,2.74702]
[1732937599582,3.49971,3641.0,3640.4,2.74694]
[1732937599976,3.49971,3641.0,3640.2,3.55058]
[1732937599977,2.74667,3640.8,3640.2,3.55058]
[1732937600218,2.74667,3640.8,3640.0,2.74721]
[1732937600219,0.55,3640.8,3640.0,2.74721]
[1732937600516,2.7468,3640.6,3640.0,2.74721]
[1732937600818,2.7468,3640.6,3639.9,0.8035]
[1732937600989,2.7468,3640.6,3639.9,3.55077]
[1732937601199,3.29666,3640.8,3640.0,2.74724]
[1732937601380,3.29666,3640.8,3639.9,3.55081]
[1732937601582,3.29666,3640.8,3640.1,2.74714]
[1732937601918,2.74666,3640.8,3640.2,2.74708]
[1732937602096,2.74666,3640.8,3639.9,1.158581]
[1732937602298,2.74681,3640.6,3640.0,2.74724]
[1732937602480,2.74666,3640.8,3639.9,0.8035]
[1732937602680,2.74678,3640.7,3640.1,2.74715]
[1732937603232,0.0233729,3640.6,3639.2,3.0]
[1732937603428,0.55,3640.5,3639.1,0.8035]
[1732937603576,2.74695,3640.4,3639.7,2.74742]
[1732937603782,0.0233729,3640.4,3639.2,0.29319727]
[1732937604085,0.7532,3640.3,3639.8,2.74739]
[1732937604496,3.50028,3640.3,3639.6,2.74754]
[1732937604785,2.74717,3640.1,3639.6,2.74754]
[1732937605015,3.50026,3640.3,3639.7,2.74742]
[1732937605217,2.7471,3640.2,3639.6,2.74754]
[1732937605738,0.55,3640.5,3640.0,2.74718]
[1732937606285,0.7845,3641.3,3640.9,2.74651]
[1732937606483,0.875,3641.4,3641.1,2.74637]
[1732937606786,0.875,3641.4,3641.0,2.74649]
[1732937606988,0.875,3641.4,3641.2,2.74629]
[1732937607181,0.875,3641.4,3641.3,2.74627]
[1732937608318,0.875,3641.4,3641.1,2.74641]
[1732937609929,0.875,3641.4,3641.0,2.74645]
[1732937610433,0.875,3641.4,3641.1,2.74636]
[1732937610580,0.875,3641.4,3641.0,2.74648]
[1732937611396,0.7845,3641.3,3640.8,2.74662]
[1732937611712,0.7845,3641.3,3640.9,2.74656]
[1732937611901,0.7845,3641.3,3640.8,2.74663]
[1732937612093,0.875,3641.4,3640.9,2.74655]
[1732937612321,0.875,3641.4,3640.7,0.7936]
[1732937612489,0.875,3641.4,3641.1,2.74637]
[1732937612889,0.875,3641.4,3641.1,5.49273]
[1732937613113,0.875,3641.4,3641.2,2.74634]
[1732937613445,0.875,3641.4,3641.3,2.74627]
[1732937613595,0.875,3641.4,3640.7,0.7936]
[1732937613792,0.875,3641.4,3641.2,2.74634]
[1732937613994,0.875,3641.4,3640.8,0.354035]
[1732937614220,0.875,3641.4,3641.2,2.74633]
[1732937614892,0.875,3641.4,3641.3,2.74627]
[1732937615087,0.875,3641.4,3641.3,3.53987]
[1732937615290,0.875,3641.4,3641.3,4.16849]
[1732937624919,0.875,3641.4,3641.3,7.08794924]
[1732937625121,0.875,3641.4,3641.3,10.06049]
[1732937625646,0.25686711,3641.4,3641.3,10.06049]
[1732937625976,0.15004542,3641.4,3641.3,10.06049]
[1732937626437,0.15004542,3641.4,3641.3,10.41110739]
[1732937626849,0.15004542,3641.4,3641.3,10.06049]
[1732937628333,0.15004542,3641.4,3641.3,10.33519]
[1732937633145,0.15004542,3641.4,3641.3,4.44319]
[1732937635098,0.15004542,3641.4,3641.3,7.44319]
[1732937638563,0.15004542,3641.4,3641.3,10.33519]
[1732937638999,0.15004542,3641.4,3641.3,7.44319]
[1732937640678,0.15004542,3641.4,3641.3,10.33519]
[1732937642279,0.15004542,3641.4,3641.3,7.44319]
[1732937642485,0.1552998,3642.2,3641.5,2.74604]
[1732937642792,0.1552998,3642.2,3641.7,2.74589]
[1732937643554,0.1552998,3642.2,3641.8,2.74588]
[1732937644158,0.1552998,3642.2,3641.7,2.74596]
[1732937644758,0.1552998,3642.2,3641.5,3.490386]
[1732937644759,0.1552998,3642.2,3641.5,2.74609]
[1732937644962,3.53901,3642.1,3641.5,2.74609]
[1732937645472,0.7933,3642.1,3641.3,0.90332]
[1732937645803,0.7933,3641.4,3640.8,0.354035]
[1732937646121,0.7933,3641.4,3640.8,2.7466]
[1732937646294,0.7933,3641.4,3640.6,2.74678]
[1732937646457,2.7464,3641.2,3640.6,2.74678]
[1732937646658,2.74651,3641.0,3640.4,2.74693]
[1732937646862,2.74663,3640.9,3640.4,0.549406]
[1732937647101,0.7908,3640.6,3640.1,2.74713]
[1732937647305,0.7908,3640.6,3640.2,2.74709]
[1732937648583,0.7908,3640.6,3639.7,0.02746629]
[1732937648782,0.7908,3641.1,3640.7,2.74666]
[1732937649097,0.7908,3641.1,3640.7,2.74672]
[1732937649300,0.7908,3641.1,3640.5,2.74681]
[1732937649507,3.53722,3641.1,3640.5,2.74681]
[1732937650289,2.74653,3641.0,3640.2,2.74707]
[1732937650496,3.53722,3641.1,3640.0,2.74725]
[1732937650703,2.74646,3641.1,3640.2,2.74704]
[1732937650901,2.74646,3641.1,3640.3,2.74702]
[1732937650902,3.53734,3641.0,3640.3,2.74702]
[1732937651308,2.74658,3640.9,3640.3,2.74702]
[1732937651521,0.7908,3641.0,3640.4,2.7469]
[1732937651859,0.7908,3641.8,3640.6,0.7956]
[1732937651980,0.25648314,3641.7,3641.3,2.74621]
[1732937652183,3.53674,3641.8,3641.1,2.74641]
[1732937652385,3.53674,3641.8,3640.6,0.7956]
[1732937652386,3.5367,3641.8,3640.6,0.7956]
[1732937652622,3.53674,3641.8,3641.1,2.74637]
[1732937653035,2.74597,3641.7,3641.1,2.74637]
[1732937653230,2.74624,3641.4,3640.7,3.100918]
[1732937653384,0.7908,3641.6,3640.7,0.354248]
[1732937653588,2.7462,3641.4,3640.8,2.74664]
[1732937653818,2.7462,3641.4,3640.8,3.3314028]
[1732937654083,2.74612,3641.5,3640.8,0.5847628]
[1732937654282,2.74621,3641.4,3640.8,3.3314028]
[1732937654518,2.74612,3641.5,3640.6,2.74677]
[1732937654716,2.74625,3641.4,3640.8,2.74662]
[1732937655096,2.74625,3641.4,3640.3,3.0]
[1732937655097,3.53687,3641.6,3640.4,2.74695]
[1732937655421,3.53687,3641.6,3640.8,2.74661]
[1732937655422,2.74621,3641.4,3640.8,2.74661]
[1732937655833,3.53687,3641.6,3640.8,2.74661]
[1732937655834,2.74627,3641.3,3640.8,2.74661]
[1732937656432,2.74627,3641.3,3640.8,0.549339]
[1732937657007,2.74578,3642.0,3640.4,2.74693]
[1732937657008,0.7908,3641.2,3640.4,2.74693]
[1732937657208,2.74654,3641.0,3640.4,2.74693]
[1732937657537,2.74642,3641.1,3640.3,2.74702]
[1732937657830,2.74658,3640.9,3640.3,2.74702]
[1732937658133,2.74676,3640.7,3639.9,2.74732]
[1732937658305,2.74693,3640.5,3639.9,2.77478686]
[1732937658696,2.7468,3640.6,3640.0,2.74724]
[1732937659031,2.7468,3640.6,3640.0,0.02746823]
[1732937659205,0.7908,3640.8,3639.9,2.74726]
[1732937659406,3.5375,3640.8,3640.1,2.74717]
[1732937659611,2.74678,3640.7,3640.2,0.02746772]
[1732937659806,3.5375,3640.8,3640.2,0.02746772]
[1732937660008,2.7468,3640.6,3640.2,0.02746772]
[1732937660621,2.7468,3640.6,3640.2,0.02746787]
[1732937660894,0.7908,3640.5,3639.5,5.74756]
[1732937661121,0.7908,3640.5,3639.8,2.7474]
[1732937661522,0.7908,3640.5,3639.9,2.74728]
[1732937661721,0.7908,3640.5,3640.0,2.74724]
[1732937661998,3.53769,3640.5,3639.8,2.74734]
[1732937662233,0.7908,3640.5,3639.8,3.3822966]
[1732937662532,0.7908,3640.9,3640.3,2.74695]
[1732937662705,0.7908,3640.9,3640.7,2.74667]
[1732937663552,0.7908,3640.9,3640.5,2.74687]
[1732937663859,0.7908,3640.9,3640.7,2.74672]
[1732937666159,0.7908,3640.9,3640.6,2.74675]
[1732937666471,0.7908,3640.9,3640.2,2.74705]
[1732937666754,0.7908,3640.9,3640.0,2.74725]
[1732937666755,2.74684,3640.6,3640.0,3.0]
[1732937666977,2.74684,3640.6,3639.9,2.74732]
[1732937666978,3.57374,3640.6,3639.9,3.02746766]
[1732937667118,2.74696,3640.4,3639.8,0.6349566]
[1732937667310,2.74696,3640.4,3639.8,3.3823366]
[1732937667714,0.0233729,3640.3,3639.1,0.7709]
[1732937667913,2.74756,3639.6,3638.9,2.74807]
[1732937668167,0.8269,3639.3,3638.9,2.74807]
[1732937668335,2.74787,3639.2,3638.6,0.55015353]
[1732937668656,2.74787,3639.2,3638.6,2.74825]
[1732937668862,2.74787,3639.2,3638.7,0.549664]
[1732937669352,3.5747,3639.3,3638.7,3.297884]
[1732937670214,2.74785,3639.2,3638.3,2.74849]
[1732937670421,0.8269,3639.3,3638.1,3.30389187]
[1732937670422,2.74815,3638.8,3638.1,3.30389187]
[1732937670621,3.57514,3638.7,3637.9,3.51971]
[1732937670816,0.8269,3638.7,3637.9,3.51971]
[1732937671043,0.8269,3638.7,3638.0,2.74876]
[1732937671367,0.8269,3638.7,3638.3,2.74853]
[1732937671524,0.8269,3638.7,3638.4,2.74844]
[1732937671852,0.8269,3638.7,3638.5,2.74834]
[1732937672154,0.8269,3638.7,3638.3,2.74848]
[1732937672457,0.8269,3638.7,3638.1,0.351966]
[1732937672663,0.8269,3638.7,3638.3,2.74853]
[1732937674074,0.8269,3638.7,3638.2,0.3871596]
[1732937674262,0.8269,3638.7,3638.2,3.1357596]
[1732937675144,0.8269,3638.7,3638.2,3.67464009]
[1732937675826,0.8269,3638.7,3638.3,2.7485]
[1732937676022,0.8269,3638.7,3638.3,3.39082401]
[1732937676573,0.8269,3639.0,3638.3,3.39082401]
[1732937676721,0.8269,3639.0,3638.6,2.7483]
[1732937676925,0.8269,3639.0,3638.7,0.02747957]
[1732937677154,0.8269,3639.0,3638.6,2.77577959]
[1732937677355,0.8269,3639.0,3638.6,3.39243495]
[1732937677665,0.8269,3639.0,3638.6,3.36495536]
[1732937678385,0.8269,3639.0,3638.7,0.02747928]
[1732937679952,0.8269,3639.0,3638.2,2.74859]
[1732937680143,2.74811,3638.9,3638.2,2.74859]
[1732937680368,2.74811,3638.9,3638.3,3.298243]
[1732937680678,0.8269,3639.0,3638.3,0.549733]
[1732937680881,2.74811,3638.9,3638.3,2.74853]
[1732937681487,0.8269,3639.0,3638.3,2.74853]
[1732937681488,3.57491,3639.0,3638.5,2.74838]
[1732937681681,0.8269,3639.0,3638.6,0.02747955]
[1732937682017,0.8269,3639.0,3638.6,0.02747924]
[1732937682341,0.8269,3639.0,3638.6,2.77572924]
[1732937682540,0.8269,3639.0,3638.6,3.32814016]
[1732937683980,0.8269,3639.0,3638.6,0.57989016]
[1732937684187,0.8269,3639.0,3638.8,2.74815]
[1732937684941,0.8269,3639.0,3638.6,0.02747924]
[1732937685146,0.8269,3639.0,3638.7,2.74821]
[1732937686181,0.8269,3639.0,3638.5,2.74835]
[1732937686381,0.8269,3639.0,3638.3,2.74852]
[1732937686689,3.57497,3639.0,3638.4,0.549718]
[1732937686903,3.57497,3639.0,3638.1,2.74867]
[1732937686904,3.57497,3639.0,3638.3,2.74846]
[1732937687659,3.57497,3639.0,3638.4,2.74844]
[1732937688084,0.8269,3639.0,3638.5,2.74832]
[1732937688897,0.8269,3639.0,3637.9,0.7709]
[1732937689080,0.8259,3639.3,3639.2,2.74785]
[1732937689284,0.8259,3639.8,3639.2,2.74785]
[1732937689666,3.57331,3639.8,3638.7,0.7602]
[1732937689866,3.57331,3639.8,3639.2,2.74779]
[1732937690267,3.57331,3639.8,3639.3,2.74777]
[1732937690468,0.8259,3639.8,3639.4,2.74764]
[1732937690782,0.8259,3639.8,3639.5,2.74758]
[1732937691657,0.8259,3639.8,3639.7,2.74747]
[1732937692089,0.2264,3639.8,3639.7,2.74747]
[1732937694416,0.2264,3639.8,3639.2,2.74785]
[1732937694782,0.0233729,3640.1,3638.7,0.7602]
[1732937694783,2.7477,3639.4,3638.9,2.74802]
[1732937695002,0.0233729,3639.7,3638.9,2.74802]
[1732937695003,2.74765,3639.5,3638.9,2.74805]
[1732937695279,1.08257138,3639.4,3638.9,2.74805]
[1732937695478,0.8259,3639.4,3638.9,2.74805]
[1732937696295,0.8259,3639.4,3639.0,2.748]
[1732937697412,0.25711284,3639.3,3639.0,2.748]
[1732937697590,0.8259,3639.4,3639.0,2.748]
[1732937697920,0.25711204,3639.3,3639.0,2.648]
[1732937698078,0.8259,3639.4,3639.0,2.648]
[1732937698282,0.8259,3639.4,3639.0,3.01554786]
[1732937698502,0.8259,3639.4,3639.2,2.74778]
[1732937699893,0.8259,3639.4,3639.1,2.74791]
[1732937700092,0.8259,3639.4,3639.0,2.748]
[1732937700991,3.57362,3639.4,3638.8,2.74815]
[1732937701202,3.57362,3639.4,3639.0,2.74797]
[1732937701203,0.25711159,3639.3,3639.0,2.74797]
[1732937701403,0.8259,3639.4,3639.2,2.7478]
[1732937702046,0.8259,3639.4,3639.2,2.74779]
[1732937702234,0.8259,3639.4,3639.3,2.74778]
[1732937702408,0.8259,3639.7,3639.6,2.74755]
[1732937702605,2.74704,3640.3,3639.9,2.74732]
[1732937702606,0.8259,3640.1,3639.9,2.74732]
[1732937703095,0.8259,3640.1,3640.0,2.74725]
[1732937703528,1.08290236,3640.4,3640.0,2.74725]
[1732937703830,0.8259,3640.4,3640.0,2.74725]
[1732937704038,0.25699572,3640.3,3640.0,2.74725]
[1732937704186,0.8259,3640.4,3640.0,2.74725]
[1732937704387,0.8259,3640.4,3639.7,0.02747152]
[1732937704388,0.8259,3640.4,3640.1,2.74712]
[1732937704588,0.8259,3640.4,3640.1,2.74713]
[1732937704835,0.8259,3640.4,3640.0,2.74723]
[1732937705039,3.93018,3640.4,3639.3,1.309757]
[1732937705208,0.8259,3640.2,3639.3,0.549557]
[1732937705398,0.25690855,3640.1,3639.5,2.7476]
[1732937705589,3.41104564,3640.6,3638.9,2.74805]
[1732937705590,2.74768,3639.5,3638.9,2.74805]
[1732937705806,0.1,3640.5,3638.6,2.74826]
[1732937705807,3.57365,3639.4,3638.8,2.74815]
[1732937706004,3.57365,3639.4,3638.9,2.74807]
[1732937706408,0.8259,3639.4,3638.9,2.74807]
[1732937706706,0.8259,3639.4,3638.7,2.74818]
[1732937706707,2.74778,3639.3,3638.7,2.74818]
[1732937707063,2.74778,3639.3,3638.4,2.74839]
[1732937707064,2.74791,3639.2,3638.6,2.74829]
[1732937707250,2.74791,3639.2,3638.4,2.74839]
[1732937707424,2.74791,3639.2,3638.6,2.74829]
[1732937707608,0.25700349,3639.1,3638.6,2.74829]
[1732937707807,0.2570016,3639.1,3638.8,2.74812]
[1732937708016,3.0048516,3639.2,3638.6,2.74829]
[1732937708364,2.74785,3639.2,3638.6,2.74829]
[1732937708854,0.2569915,3639.1,3638.6,2.74829]
[1732937709061,0.7971,3638.8,3638.3,2.74851]
[1732937709214,0.7971,3638.8,3638.4,2.74844]
[1732937710511,0.7971,3638.8,3638.2,2.7486]
[1732937710733,0.7971,3638.8,3638.4,2.74842]
[1732937711135,0.7971,3638.8,3638.5,2.74836]
[1732937711758,0.7971,3638.8,3638.2,2.74858]
[1732937711759,0.7971,3638.6,3637.3,0.8325]
[1732937711938,2.74883,3637.9,3637.4,2.7492]
[1732937712192,0.7971,3638.3,3636.5,0.8325]
[1732937712193,2.74929,3637.3,3636.5,0.8325]
[1732937712396,2.74916,3637.5,3636.6,2.74982]
[1732937712608,0.7971,3637.8,3636.7,2.74972]
[1732937712819,0.7971,3637.2,3636.5,2.74986]
[1732937713106,0.7971,3637.2,3636.4,2.74995]
[1732937713107,3.5465,3637.2,3636.4,2.7499]
[1732937713267,0.8204729,3637.2,3636.4,2.7499]
[1732937713469,2.74944,3637.1,3636.4,2.7499]
[1732937713670,0.63191429,3637.1,3635.6,0.8325]
[1732937713870,2.7496,3636.9,3636.1,2.75012]
[1732937714188,0.7971,3636.9,3635.6,3.58306]
[1732937714389,0.7971,3636.9,3635.2,2.1284727]
[1732937714390,0.7971,3636.9,3635.7,2.75044]
[1732937714702,0.7971,3636.1,3635.5,2.75064]
[1732937714905,0.7971,3636.1,3635.4,2.7507]
[1732937715104,0.7971,3636.1,3634.9,0.8325]
[1732937715310,3.54731,3636.1,3635.1,2.75089]
[1732937715668,3.54731,3636.1,3635.3,2.75073]
[1732937715871,3.54731,3636.1,3635.1,2.75089]
[1732937715872,2.75037,3635.9,3635.1,2.75089]
[1732937716076,3.54731,3636.1,3635.1,2.75089]
[1732937716283,2.75028,3636.0,3635.3,2.75078]
[1732937716876,2.75028,3636.0,3635.0,0.29609727]
[1732937716877,0.7971,3636.1,3635.7,2.75048]
[1732937717207,0.1,3637.4,3635.7,2.75048]
[1732937717208,2.74927,3637.4,3636.6,2.74976]
[1732937717509,2.74927,3637.4,3636.4,2.74997]
[1732937717510,2.74939,3637.2,3636.4,2.74989]
[1732937717722,2.74927,3637.4,3636.4,2.74989]
[1732937717875,2.74944,3637.1,3636.4,2.74989]
[1732937718211,0.7971,3637.0,3636.4,2.74997]
[1732937718408,0.7971,3637.0,3636.6,2.74976]
[1732937718813,0.7971,3637.0,3636.4,2.74997]
[1732937718977,0.7971,3637.0,3636.5,2.74988]
[1732937719384,0.7971,3637.0,3636.1,0.8325]
[1732937719677,0.7971,3637.0,3636.4,2.74991]
[1732937720105,5.74921,3637.4,3636.3,3.0]
[1732937720106,0.7971,3637.4,3636.3,3.0]
[1732937720275,0.7971,3637.4,3636.3,2.74999]
[1732937720481,0.7971,3637.4,3636.9,2.74955]
[1732937721011,0.7971,3637.4,3636.4,0.02749366]
[1732937721012,0.7971,3637.4,3637.3,2.74929]
[1732937721513,3.0,3638.1,3636.6,0.02749288]
[1732937721514,3.54578,3638.1,3637.1,2.74943]
[1732937721813,2.74889,3637.9,3637.1,2.74943]
[1732937722514,2.74892,3637.8,3637.1,2.74943]
[1732937722724,0.354578,3638.0,3636.8,0.8325]
[1732937723014,0.354578,3638.0,3637.4,2.74921]
[1732937723220,3.103348,3638.0,3637.2,2.74931]
[1732937723433,0.7971,3638.1,3636.9,2.74959]
[1732937723586,0.7971,3638.1,3636.4,0.8325]
[1732937723926,3.54617,3637.6,3636.9,2.74958]
[1732937724728,2.74914,3637.5,3636.9,2.74958]
[1732937725306,2.74941,3637.2,3636.6,2.74981]
[1732937725502,2.74924,3637.4,3636.6,2.74981]
[1732937725701,2.74938,3637.2,3636.3,2.75004]
[1732937726007,0.7971,3637.1,3636.3,3.683295]
[1732937726185,2.74957,3637.0,3636.3,2.75003]
[1732937726883,0.7971,3637.1,3636.2,2.75009]
[1732937727149,3.54654,3637.1,3636.4,2.74993]
[1732937727313,0.7971,3637.1,3636.4,2.74993]
[1732937727799,2.7496,3636.9,3636.2,2.75011]
[1732937728005,2.7496,3636.9,3636.2,3.383398]
[1732937728291,2.7496,3636.9,3636.3,2.75004]
[1732937728887,2.74959,3636.9,3635.9,0.8325]
[1732937729119,2.74959,3636.9,3636.0,2.75024]
[1732937729329,2.74959,3636.9,3636.1,2.75014]
[1732937729494,3.54655,3637.1,3636.1,2.75014]
[1732937729495,3.54655,3637.1,3636.1,0.358264]
[1732937729819,2.74952,3637.0,3636.4,2.74989]
[1732937730322,2.74952,3637.0,3636.2,2.75012]
[1732937730526,2.74967,3636.8,3636.2,2.75012]
[1732937731323,2.74967,3636.8,3636.0,2.75025]
[1732937731610,0.7665,3636.5,3636.0,2.75025]
[1732937731809,0.7898729,3636.5,3635.7,3.025478]
[1732937732038,2.75005,3636.3,3635.7,3.025478]
[1732937732241,0.7665,3636.5,3635.8,2.75036]
[1732937732242,3.51645,3636.5,3635.8,2.75036]
[1732937732401,3.51642,3636.5,3635.7,0.275048]
[1732937732599,2.75018,3636.2,3635.5,2.7506]
[1732937733213,2.75021,3636.1,3635.5,2.7506]
[1732937733546,2.75029,3636.0,3635.4,2.75072]
[1732937733702,2.75029,3636.0,3635.2,6.33159]
[1732937734043,0.7665,3635.9,3635.2,3.58072]
[1732937734340,0.7665,3635.9,3635.2,3.938792]
[1732937735002,2.75051,3635.7,3635.0,2.75102]
[1732937735300,2.75065,3635.5,3634.8,2.75116]
[1732937735500,2.75065,3635.5,3634.6,3.5812]
[1732937735736,2.75065,3635.5,3634.9,2.75109]
[1732937736118,2.75054,3635.7,3635.0,2.75101]
[1732937736523,2.75058,3635.6,3635.0,2.75101]
[1732937738715,0.7665,3635.9,3635.0,2.75101]
[1732937738964,2.75051,3635.7,3635.2,2.75087]
[1732937739129,2.75044,3635.8,3635.2,2.75087]
[1732937739752,2.75044,3635.8,3635.0,2.751]
[1732937739927,2.75071,3635.5,3634.8,2.75117]
[1732937740344,2.75071,3635.5,3634.9,2.75109]
[1732937740669,2.75057,3635.7,3635.0,2.751]
[1732937740842,2.75057,3635.7,3634.6,0.8299]
[1732937740843,2.75075,3635.4,3634.6,3.5812]
[1732937741019,2.75075,3635.4,3634.7,2.75125]
[1732937741214,0.7665,3635.3,3634.7,2.75125]
[1732937741441,0.7665,3635.3,3634.3,0.8299]
[1732937741773,0.7665,3635.7,3635.0,2.75096]
[1732937742053,0.7665,3635.7,3635.3,2.75077]
[1732937742462,0.7665,3635.7,3635.0,2.77851748]
[1732937742663,0.7665,3635.7,3635.2,2.75087]
[1732937743789,0.7665,3635.7,3635.0,2.75101]
[1732937743976,0.7665,3635.7,3635.2,2.75085]
[1732937745974,0.7665,3635.7,3635.3,2.75079]
[1732937746580,0.7665,3635.7,3635.2,2.75082]
[1732937746949,0.7665,3635.7,3634.9,0.8299]
[1732937747168,3.517,3635.7,3635.1,2.75095]
[1732937747488,0.7665,3635.7,3635.2,2.75086]
[1732937747794,0.7665,3635.7,3635.1,2.75095]
[1732937747795,0.7665,3635.7,3635.3,2.7508]
[1732937748105,0.7663,3636.0,3635.3,0.58043326]
[1732937748303,0.7663,3636.1,3635.5,2.7506]
[1732937748469,3.51651,3636.1,3635.5,2.7506]
[1732937748990,0.7663,3636.1,3635.0,0.02750479]
[1732937749152,0.7663,3636.1,3635.8,2.75037]
[1732937749358,0.7663,3636.1,3635.6,2.75056]
[1732937749607,0.7663,3636.1,3636.0,2.75027]
[1732937749827,0.7663,3636.5,3636.0,2.75027]
[1732937750181,0.7663,3636.5,3636.2,2.75012]
[1732937750525,0.7663,3636.5,3636.0,2.75027]
[1732937750726,2.74998,3636.4,3635.8,2.75041]
[1732937750888,2.7733529,3636.4,3635.8,2.75041]
[1732937751621,0.7663,3636.5,3635.9,2.7503]
[1732937752325,0.7663,3636.5,3635.8,2.75041]